{"text_format":"3","workbook":"xlsx","n_sheets":3,"sheets":["Inventário de Investigação","Ativos de inventário.","Investigação de responsabilidad"],"not_rendered":{"defined_names":1},"read":"whole","date_system":"1900"}

{"sheet":"Inventário de Investigação","index":0,"n_rows":45,"n_cols":35,"rows_kept":45,"merged":[[0,1,0,30],[0,31,0,39],[1,1,5,39],[6,1,6,6],[6,7,6,39],[7,1,7,6],[7,7,7,39],[9,1,9,6],[9,7,9,39],[10,1,10,6],[10,7,10,39],[11,1,11,6],[11,7,11,20],[11,21,11,26],[11,27,11,30],[11,31,11,33],[11,34,11,39],[12,1,12,6],[12,7,12,20],[12,21,12,26],[13,1,13,6],[13,7,13,20],[13,21,13,26],[14,1,14,6],[14,7,14,20],[14,21,14,26],[15,1,15,6],[17,1,17,39],[18,1,18,6],[18,7,18,12],[18,13,18,15],[18,16,18,18],[18,19,18,26],[18,27,18,31],[18,32,18,39],[19,1,19,6],[19,7,19,12],[19,13,19,15],[19,16,19,18],[19,19,19,26],[19,27,19,31],[19,32,19,39],[20,1,20,6],[20,7,20,12],[20,13,20,15],[20,16,20,18],[20,19,20,26],[20,27,20,31],[20,32,20,39],[21,1,21,6],[21,7,21,12],[21,13,21,15],[21,16,21,18],[21,19,21,26],[21,27,21,31],[21,32,21,39],[22,1,22,6],[22,7,22,12],[22,13,22,15],[22,16,22,18],[22,19,22,26],[22,27,22,31],[22,32,22,39],[23,1,23,6],[23,7,23,12],[23,13,23,15],[23,16,23,18],[23,19,23,26],[23,27,23,31],[23,32,23,39],[25,1,25,39],[26,1,26,6],[26,7,26,12],[26,13,26,18],[26,19,26,26],[26,27,26,31],[26,32,26,39],[27,1,27,6],[27,7,27,12],[27,13,27,18],[27,19,27,26],[27,27,27,31],[27,32,27,39],[28,1,28,6],[28,7,28,12],[28,13,28,18],[28,19,28,26],[28,27,28,31],[28,32,28,39],[29,1,29,6],[29,7,29,12],[29,13,29,18],[29,19,29,26],[29,27,29,31],[29,32,29,39],[30,1,30,6],[30,7,30,12],[30,13,30,18],[30,19,30,26],[30,27,30,31],[30,32,30,39],[31,1,31,6],[31,7,31,12],[31,13,31,18],[31,19,31,26],[31,27,31,31],[31,32,31,39],[33,1,33,12],[33,14,33,39],[34,1,34,12],[34,14,34,21],[34,22,34,25],[34,26,34,33],[34,34,34,39],[35,2,35,12],[35,14,35,21],[35,22,35,25],[35,26,35,33],[35,34,35,39],[36,2,36,12],[36,14,36,21],[36,22,36,25],[36,26,36,33],[36,34,36,39],[37,2,37,12],[37,14,37,21],[37,22,37,25],[37,26,37,33],[37,34,37,39],[38,2,38,12],[38,14,38,21],[38,22,38,25],[38,26,38,33],[38,34,38,39],[39,2,39,12],[39,14,39,21],[39,22,39,25],[39,26,39,33],[39,34,39,39],[40,2,40,12],[40,14,40,21],[40,22,40,25],[40,26,40,33],[40,34,40,39],[41,2,41,12],[41,14,41,21],[41,22,41,25],[41,26,41,33],[41,34,41,39],[42,2,42,12],[42,14,42,21],[42,22,42,25],[42,26,42,33],[42,34,42,38],[43,2,43,12],[43,14,43,21],[43,22,43,25],[43,26,43,33],[43,34,43,39],[44,2,44,12],[44,14,44,21],[44,22,44,25],[44,26,44,33],[44,34,44,39]]}
[]
[null,"Inventário de Investigação"]
[]
[]
[]
[]
[null,"Nome do(s) Executor(es)",{"$nulls":5},"Alberto Ramos"]
[null,"Informações de contato",{"$nulls":5},"Rua dos Carvalhos, 45, SP 50123-000"]
[]
[null,"Nome do Falecido",{"$nulls":5},"Antônio Teixeira"]
[null,"Endereço da Rua",{"$nulls":5},"Rua do Ipê, 6789"]
[null,"Cidade",{"$nulls":5},"Buffalo",{"$nulls":13},"Estado",{"$nulls":5},"NY",{"$nulls":3},"CEP",null,null,98052]
[null,"CPF",{"$nulls":5},"AAA-GG-SSSS",{"$nulls":13},"Profissão",{"$nulls":5},"Dentista"]
[null,"Data de Nascimento",{"$nulls":5},"1965-12-08",{"$nulls":13},"Local de nascimento",{"$nulls":5},"NY"]
[null,"Data da Morte",{"$nulls":5},{"$f":"TODAY()-3","v":"2022-05-16"},{"$nulls":13},"Local da Morte",{"$nulls":5},"NY"]
[null,"Informações adicionais"]
[]
[null,"  Menores, Crianças e Outros Dependentes"]
[null,"Nome",{"$nulls":5},"Relacionamento",{"$nulls":5},"Dependente",null,null,"Idade",null,null,"Endereço",{"$nulls":7},"Número de Telefone",{"$nulls":4},"Email"]
[null,"Lara Cardoso",{"$nulls":5},"Representante Pessoal",{"$nulls":5},"Não",null,null,30]
[null,"Eduarda Dias",{"$nulls":5},"Cônjuge",{"$nulls":5},"Sim",null,null,35]
[null,"Henrique Cunha",{"$nulls":5},"Filho",{"$nulls":5},"Sim",null,null,12]
[]
[]
[]
[null,"Consultores Profissionais"]
[null,"Tipo de Supervisor",{"$nulls":5},"Pessoa de contato",{"$nulls":5},"Empresa",{"$nulls":5},"Endereço",{"$nulls":7},"Número de Telefone",{"$nulls":4},"Email"]
[null,"Contador"]
[null,"Advogado/Notário"]
[null,"Outros"]
[]
[]
[]
[null,"  Lista de verificação de investigação",{"$nulls":12},"  Inventários"]
[null,"    Itens da Lista de Verificação",{"$nulls":12},"Ativos de inventário.",{"$nulls":7},"Valor (R$)",{"$nulls":3},"Investigação de responsabilidades",{"$nulls":7},"Valor (R$)"]
[null,"✔","Testamento ou qualquer outro documento",{"$nulls":11},{"$f":"'Ativos de inventário.'!B12","v":"Contas Bancárias"},{"$nulls":7},{"$f":"'Ativos de inventário.'!G20","v":{"v":0,"d":"R$ 0.00"}},{"$nulls":3},{"$f":"'Investigação de responsabilidad'!B11","v":"Hipoteca"},{"$nulls":7},{"$f":"'Investigação de responsabilidad'!G18","v":{"v":0,"d":"R$ 0.00"}}]
[null,"✔","Contrato de aluguel de cofre e chaves",{"$nulls":11},{"$f":"'Ativos de inventário.'!B22","v":"Investimentos pessoais"},{"$nulls":7},{"$f":"'Ativos de inventário.'!G30","v":{"v":0,"d":"R$ 0.00"}},{"$nulls":3},{"$f":"'Investigação de responsabilidad'!B21","v":"Empréstimos pessoais e linhas de crédito"},{"$nulls":7},{"$f":"'Investigação de responsabilidad'!G28","v":{"v":0,"d":"R$ 0.00"}}]
[null,"✖","Senhas para computadores e contas online",{"$nulls":11},{"$f":"'Ativos de inventário.'!B32","v":"Interesses comerciais"},{"$nulls":7},{"$f":"'Ativos de inventário.'!G40","v":{"v":0,"d":"R$ 0.00"}},{"$nulls":3},{"$f":"'Investigação de responsabilidad'!B31","v":"Interesses comerciais"},{"$nulls":7},{"$f":"'Investigação de responsabilidad'!G38","v":{"v":0,"d":"R$ 0.00"}}]
[null,"✔","Contratos de confiança em tempo de vida",{"$nulls":11},{"$f":"'Ativos de inventário.'!B42","v":"Imóveis"},{"$nulls":7},{"$f":"'Ativos de inventário.'!G50","v":{"v":0,"d":"R$ 0.00"}},{"$nulls":3},{"$f":"'Investigação de responsabilidad'!B41","v":"Cartões de Crédito"},{"$nulls":7},{"$f":"'Investigação de responsabilidad'!G48","v":{"v":0,"d":"R$ 0.00"}}]
[null,"✔","Seguro de vida, saúde/acidentes e apólices de seguro",{"$nulls":11},{"$f":"'Ativos de inventário.'!B52","v":"Planos de Pensão"},{"$nulls":7},{"$f":"'Ativos de inventário.'!G60","v":{"v":0,"d":"R$ 0.00"}},{"$nulls":3},{"$f":"'Investigação de responsabilidad'!B51","v":"Outras Responsabilidades"},{"$nulls":7},{"$f":"'Investigação de responsabilidad'!G58","v":{"v":0,"d":"R$ 0.00"}}]
[null,"✔","Demonstrativos financeiros",{"$nulls":11},{"$f":"'Ativos de inventário.'!B62","v":"Seguro"},{"$nulls":7},{"$f":"'Ativos de inventário.'!G70","v":{"v":0,"d":"R$ 0.00"}}]
[null,"✔","Declarações de imposto de renda dos últimos três anos",{"$nulls":11},{"$f":"'Ativos de inventário.'!B72","v":"Empréstimos e Hipotecas"},{"$nulls":7},{"$f":"'Ativos de inventário.'!G80","v":{"v":0,"d":"R$ 0.00"}}]
[null,"✔","Certidões de nascimento e óbito",{"$nulls":11},{"$f":"'Ativos de inventário.'!B82","v":"Interesse em outras propriedades e relações de confiança"},{"$nulls":7},{"$f":"'Ativos de inventário.'!G90","v":{"v":0,"d":"R$ 0.00"}}]
[null,"✖","Escrituras, hipotecas e declarações de arrendamento",{"$nulls":11},{"$f":"'Ativos de inventário.'!B92","v":"Bens pessoais e outros ativos"},{"$nulls":7},{"$f":"'Ativos de inventário.'!G100","v":{"v":0,"d":"R$ 0.00"}}]
[null,"☐","Notas e faturas não pagas",{"$nulls":11},"Total de Ativos",{"$nulls":7},{"$f":"'Ativos de inventário.'!G10","v":{"v":0,"d":"R$ 0.00"}},{"$nulls":3},"Total de Responsabilidades",{"$nulls":7},{"$f":"SUM(AI36:AN44)","v":{"v":0,"d":"R$ 0.00"}}]

{"sheet":"Ativos de inventário.","index":1,"n_rows":100,"n_cols":8,"rows_kept":100,"merged":[[0,1,0,7],[1,1,5,7],[6,1,7,7],[11,1,11,7],[12,1,12,7],[21,1,21,7],[22,1,22,7],[31,1,31,7],[32,1,32,7],[41,1,41,7],[42,1,42,7],[51,1,51,7],[52,1,52,7],[61,1,61,7],[62,1,62,7],[71,1,71,7],[72,1,72,7],[81,1,81,7],[82,1,82,7],[91,1,91,7],[92,1,92,7]]}
[]
[null,"Ativos de inventário."]
[]
[]
[]
[]
[null,"Use esta planilha para criar um inventário dos ativos de inventário. Você precisará determinar o valor de mercado de cada ativo de propriedade na data da morte. Examine todos os registros, incluindo demonstrativos financeiros, políticas de seguros e declarações fiscais para obter os valores de mercado. Talvez você também precise obter uma avaliação de itens pessoais (ou seja, obras de arte, coleções, livros, etc.). Certifique-se de incluir também quaisquer ativos estrangeiros no inventário, como imóveis, títulos ou interesses comerciais no exterior. Talvez você queira obter assistência profissional para obter um valor de mercado preciso para ativos estrangeiros."]
[]
[]
[null,"Total de ativos",{"$nulls":4},{"$f":"tblBankAccounts[[#Totals],[Saldo ]]+tblPersonalInvestments[[#Totals],[Valor de Mercado]]+tblBusinessInterests[[#Totals],[Valor ]]+tblRealEstate[[#Totals],[Preço de Mercado]]+tblPensionPlans[[#Totals],[Valor ]]+tblInsurance[[#Totals],[Valor em Dinheiro ]]+tblMortgages[[#Totals],[Saldo devido ]]+tblTrusts[[#Totals],[Valor da Distribuição]]+tblOtherAssets[[#Totals],[Valor ]]","v":{"v":0,"d":"R$ 0.00"}}]
[]
[null,"Contas Bancárias"]
[null,"Liste todas as contas bancárias, incluindo dinheiro, cheques de viagem, ordens de pagamento e contas em bancos comerciais, caixas econômicas, cooperativas de crédito, etc. Inclua todos os nomes listados na conta e o valor em dinheiro real que se refere ao dólar exato e ao valor da alteração no momento da morte."]
[null,"Instituição financeira ","Endereço","Telefone","Número da Conta","Tipo de Conta","Saldo ","Anotações"]
[]
[]
[]
[]
[]
[null,"Total",{"$nulls":4},{"$f":"SUBTOTAL(109,tblBankAccounts[[Saldo ]])","v":{"v":0,"d":"R$ 0.00"}}]
[]
[null,"Investimentos pessoais"]
[null,"Listar contas de caixa, contas margem, contas de poupança isentas de impostos, planos de poupança de aposentadoria registrados (RRSPs), fundos de renda de aposentadoria registrados (RRIFs), RRIFs bloqueados, RRSPs bloqueados, fundos de renda de vida, fundos de renda de aposentadoria prescritos, planos de poupança educacional registrada, anuidades, etc."]
[null,"Empresa","Endereço","Telefone","Número da Conta","Beneficiário","Valor de Mercado","Anotações"]
[]
[]
[]
[]
[]
[null,"Total",{"$nulls":4},{"$f":"SUBTOTAL(109,tblPersonalInvestments[Valor de Mercado])","v":{"v":0,"d":"R$ 0.00"}}]
[]
[null,"Interesses comerciais"]
[null,"Liste todos os interesses comerciais, incluindo empresas individuais, práticas profissionais, corporações, parcerias, sociedades e sociedades de responsabilidade limitada, joint-ventures e outras entidades comerciais não negociadas publicamente. "]
[null,"Nome da Empresa","Endereço","Telefone","Contato","Tipo","Valor ","Anotações"]
[]
[]
[]
[]
[]
[null,"Total",{"$nulls":4},{"$f":"SUBTOTAL(109,tblBusinessInterests[[Valor ]])","v":{"v":0,"d":"R$ 0.00"}}]
[]
[null,"Imóveis"]
[null,"Liste qualquer propriedade real na qual o Falecido e/ou o cônjuge/parceiro sobrevivente do Falecido seja proprietário, coproprietário ou tenha interesse de qualquer forma, incluindo propriedade adquirida em empreendimentos recreativos e time-share. Obtenha cópias da propriedade. Forneça uma descrição do imóveis com seu endereço físico. Liste o valor de mercado justo da propriedade, com base na avaliação mais recente do avaliador de impostos."]
[null,"Endereço","Título mantido por","Telefone","Contato","Preço de Compra","Preço de Mercado","Anotações"]
[]
[]
[]
[]
[]
[null,"Total",{"$nulls":3},{"$f":"SUBTOTAL(109,tblRealEstate[Preço de Compra])","v":{"v":0,"d":"R$ 0.00"}},{"$f":"SUBTOTAL(109,tblRealEstate[Preço de Mercado])","v":{"v":0,"d":"R$ 0.00"}}]
[]
[null,"Planos de Pensão"]
[null,"Listar benefícios definidos, compras em dinheiro ou contribuições definidas, DPSP ou RRSP de grupo etc."]
[null,"Empresa","Telefone","Tipo de Plano","Beneficiário","Email","Valor ","Anotações"]
[]
[]
[]
[]
[]
[null,"Total",{"$nulls":4},{"$f":"SUBTOTAL(109,tblPensionPlans[[Valor ]])","v":{"v":0,"d":"R$ 0.00"}}]
[]
[null,"Seguro"]
[null,"Inclua apólices de seguro de vida com beneficiários nomeados e contas de investimento transferidas à morte, como ativos não probatórios. Se o tribunal perguntar sobre esses ativos, o executor poderá referenciar facilmente a lista de ativos não probatórios e explicar sua ausência do inventário."]
[null,"Emissor","Número da Apólice","Telefone","Beneficiário","Valor nominal ","Valor em Dinheiro ","Anotações"]
[]
[]
[]
[]
[]
[null,"Total",{"$nulls":3},{"$f":"SUBTOTAL(109,tblInsurance[[Valor nominal ]])","v":{"v":0,"d":"R$ 0.00"}},{"$f":"SUBTOTAL(109,tblInsurance[[Valor em Dinheiro ]])","v":{"v":0,"d":"R$ 0.00"}}]
[]
[null,"Empréstimos e Hipotecas"]
[null,"Liste empréstimos privados e hipotecas em que a pessoa falecida era o credor."]
[null,"Nome do Mutuário","Endereço","Telefone","Tipo","Valor original","Saldo devido ","Anotações"]
[]
[]
[]
[]
[]
[null,"Total",{"$nulls":3},{"$f":"SUBTOTAL(109,tblMortgages[Valor original])","v":{"v":0,"d":"R$ 0.00"}},{"$f":"SUBTOTAL(109,tblMortgages[[Saldo devido ]])","v":{"v":0,"d":"R$ 0.00"}}]
[]
[null,"Interesse em outras propriedades e relações de confiança"]
[null,"Liste os ativos registrados em nome da pessoa falecida mantidos em nome de terceiros (por exemplo, ativos mantidos pela pessoa falecida como administrador ou ativos mantidos sob uma procuração)."]
[null,"Nome da Propriedade/Fidúcia","Nome do Executor/Fiduciário","Telefone","Endereço","Email","Valor da Distribuição","Anotações"]
[]
[]
[]
[]
[]
[null,"Total",{"$nulls":4},{"$f":"SUBTOTAL(109,tblTrusts[Valor da Distribuição])","v":{"v":0,"d":"R$ 0.00"}}]
[]
[null,"Bens pessoais e outros ativos"]
[null,"Listar todos os itens pessoais, por exemplo; carros, brinquedos, arte, livros, móveis. Inclua itens que possam ter sido guardados em um cofre ou guarda."]
[null,"Descrição do Item","Localização","Telefone","Contato","Beneficiário","Valor ","Anotações"]
[]
[]
[]
[]
[]
[null,"Total",{"$nulls":4},{"$f":"SUBTOTAL(109,tblOtherAssets[[Valor ]])","v":{"v":0,"d":"R$ 0.00"}}]

{"sheet":"Investigação de responsabilidad","index":2,"n_rows":58,"n_cols":8,"rows_kept":58,"merged":[[0,1,0,7],[1,1,5,7],[6,1,6,7],[10,1,10,7],[20,1,20,7],[30,1,30,7],[40,1,40,7],[50,1,50,7]]}
[]
[null,"Investigação de responsabilidades"]
[]
[]
[]
[]
[null,"Use esta planilha para capturar os detalhes das responsabilidades do espólio, tanto nacionais quanto estrangeiras. Você exigirá uma avaliação de cada passivo na data da morte."]
[]
[null,"Total de ativos",{"$nulls":4},{"$f":"SUM(G18,G28,G38,G48,G58)","v":{"v":0,"d":"R$ 0.00"}}]
[]
[null,"Hipoteca"]
[null,"Instituição financeira ","Endereço","Telefone","Título Mantido por","Número da Conta","Saldo ","Anotações"]
[]
[]
[]
[]
[]
[null,"Total",{"$nulls":4},{"$f":"SUBTOTAL(109,tblBankAccounts2[[Saldo ]])","v":{"v":0,"d":"R$ 0.00"}}]
[]
[]
[null,"Empréstimos pessoais e linhas de crédito"]
[null,"Instituição financeira","Endereço","Telefone"," Número da Conta","Tipo","Saldo ","Anotações"]
[]
[]
[]
[]
[]
[null,"Total",{"$nulls":4},{"$f":"SUBTOTAL(109,tblPersonalInvestments3[[Saldo ]])","v":{"v":0,"d":"R$ 0.00"}}]
[]
[]
[null,"Interesses comerciais"]
[null,"Nome da Empresa","Endereço"," Telefone"," Contato","Tipo","Valor ","Anotações"]
[]
[]
[]
[]
[]
[null,"Total",{"$nulls":4},{"$f":"SUBTOTAL(109,tblBusinessInterests4[[Valor ]])","v":{"v":0,"d":"R$ 0.00"}}]
[]
[]
[null,"Cartões de Crédito"]
[null,"Empresa de Cartão de Crédito","Endereço da Empresa","Telefone","Número do Cartão","Data de Expiração ","Saldo ","Anotações"]
[]
[]
[]
[]
[]
[null,"Total",{"$nulls":3},{"$f":"SUBTOTAL(109,tblRealEstate5[[Data de Expiração ]])","v":"00:00:00"},{"$f":"SUBTOTAL(109,tblRealEstate5[[Saldo ]])","v":{"v":0,"d":"R$ 0.00"}}]
[]
[]
[null,"Outras Responsabilidades"]
[null,"Descrição do Item","Localização","Telefone","Contato","Beneficiário","Valor ","Anotações"]
[]
[]
[]
[]
[]
[null,"Total",{"$nulls":4},{"$f":"SUBTOTAL(109,tblPensionPlans6[[Valor ]])","v":{"v":0,"d":"R$ 0.00"}}]